bitfinex-derivatives/quotes_ETHF0:USTF0_20260308
["timestamp","ask_amount","ask_price","bid_price","bid_amount"]
[1772993865362,1.30326486,1931.4,1930.5,1.8593895]
[1772993871069,1.14853609,1931.2,1930.5,1.8593895]
[1772993872164,1.14853609,1931.2,1930.5,0.00641692]
[1772993872468,1.14853609,1931.2,1930.5,1.73636089]
[1772993873865,1.14853609,1931.2,1930.5,0.00641692]
[1772993874170,1.09012714,1931.0,1930.5,0.00641692]
[1772993875472,1.07741653,1930.8,1930.2,1.72994397]
[1772993876467,1.07741653,1930.8,1930.2,1.73617987]
[1772993877573,1.07741653,1930.8,1930.3,1.72994397]
[1772993880877,1.07741653,1930.8,1930.2,2.09185789]
[1772993880878,0.99498077,1930.6,1930.0,12.999]
[1772993881171,0.99498077,1930.6,1929.9,1.72994397]
[1772993881876,0.99498077,1930.6,1929.9,1.73562103]
[1772993882275,0.98461938,1930.8,1929.9,1.73562103]
[1772993886983,0.98461938,1930.8,1930.1,1.45654485]
[1772993888088,0.99286391,1931.1,1930.3,1.45654485]
[1772993889388,0.98047688,1931.4,1930.3,1.45654485]
[1772993892491,0.98047688,1931.4,1930.5,1.45654485]
[1772993898098,0.98047688,1931.4,1930.6,1.45654485]
[1772993898598,0.98047688,1931.4,1930.5,1.45654485]
[1772993902694,0.86969074,1931.2,1930.1,40.8]
[1772993903001,0.86760428,1930.8,1930.0,1.45654485]
[1772993903302,0.86192722,1930.0,1928.9,1.45654485]
[1772993903496,0.86192722,1929.6,1928.9,1.45654485]
[1772993903692,0.85203644,1929.4,1928.6,1.54673078]
[1772993904095,0.85848472,1929.4,1928.6,1.5517751]
[1772993904297,0.32237341,1929.5,1928.8,1.45654485]
[1772993904501,0.85332493,1930.0,1928.8,1.45654485]
[1772993904801,0.84186409,1929.9,1928.8,1.45654485]
[1772993905202,0.84186409,1929.7,1928.8,1.45654485]
[1772993905502,0.24178632,1929.6,1928.8,1.45654485]
[1772993905697,0.85502607,1929.5,1928.8,1.45654485]
[1772993909200,0.85502607,1929.5,1928.7,1.45654485]
[1772993909604,0.66561032,1929.3,1928.7,1.45654485]
[1772993909804,0.66503876,1929.3,1928.7,1.45654485]
[1772993911398,0.00507802,1929.7,1928.7,1.45654485]
[1772993911801,4.42521799,1929.6,1928.7,1.45654485]
[1772993912002,4.42521799,1929.6,1928.6,1.4703558]
[1772993912506,0.00507802,1929.7,1928.6,1.4703558]
[1772993912702,0.01217348,1929.6,1928.6,1.4703558]
[1772993912898,0.01779387,1929.5,1928.6,1.4703558]
[1772993913300,0.01779387,1929.3,1928.6,1.4703558]
[1772993913599,0.01779387,1929.5,1928.6,1.4703558]
[1772993915810,0.36259036,1929.3,1928.6,1.4703558]
[1772993916502,0.35610005,1929.5,1928.6,1.4703558]
[1772993923115,0.36101676,1929.7,1928.6,1.4703558]
[1772993924819,0.34310036,1929.5,1928.6,1.4703558]
[1772993926819,0.00507802,1929.7,1928.6,1.4703558]
[1772993928318,0.08060797,1929.6,1928.6,1.4703558]
[1772993932220,0.25914,1929.5,1928.0,1.56426121]
[1772993932520,8.80629144,1929.4,1928.0,1.56426121]
[1772993932718,0.64501424,1929.4,1928.1,1.56426121]
[1772993933121,8.1612772,1929.3,1928.1,1.56426121]
[1772993933425,0.25914,1929.5,1928.1,1.56966048]
[1772993933426,0.16125356,1929.2,1928.1,1.56966048]
[1772993933926,0.56436865,1929.3,1928.1,1.56966048]
[1772993934122,0.16129537,1929.4,1928.1,1.56966048]
[1772993934329,8.16165782,1929.3,1928.2,1.58277471]
[1772993934624,0.56432684,1929.2,1928.2,1.58277471]
[1772993934926,0.08065396,1929.3,1928.2,1.58277471]
[1772993935322,0.161287,1929.4,1928.2,1.58277471]
[1772993935522,0.161287,1929.4,1928.4,1.58373736]
[1772993935727,0.4836938,1929.5,1928.4,1.58373736]
[1772993936823,0.4836938,1929.5,1928.4,1.67393147]
[1772993937028,0.4836938,1929.5,1928.4,1.58373736]
[1772993937423,0.4836938,1929.5,1928.3,12.905]
[1772993937424,0.4836938,1929.5,1928.6,1.59136618]
[1772993937925,0.4836938,1929.5,1928.6,1.68156029]
[1772993939120,0.00507802,1929.7,1928.8,1.59317113]
[1772993939728,0.00507802,1929.7,1928.8,1.68336524]
[1772993939924,0.00507802,1929.7,1928.2,0.09020908]
[1772993939925,8.15903645,1929.6,1928.2,1.59065178]
[1772993940133,8.41817645,1929.5,1928.2,1.59065178]
[1772993940323,8.15903645,1929.4,1928.2,1.59065178]
[1772993940635,0.08064977,1929.4,1928.2,1.59065178]
[1772993941922,0.0544643,1929.3,1928.2,1.59065178]
[1772993942330,0.25914,1929.5,1928.2,1.59065178]
[1772993942331,0.0544643,1929.1,1928.2,1.59065178]
[1772993942528,0.16127864,1929.2,1928.2,1.59065178]
[1772993942722,0.04326303,1929.6,1928.2,1.84997178]
[1772993943226,0.04326303,1929.6,1928.4,1.485541]
[1772993947233,0.04326303,1929.6,1928.6,1.56633807]
[1772993947633,0.00507802,1929.7,1928.6,1.56633807]
[1772993949035,0.00507802,1929.7,1928.8,1.56780363]
[1772993952136,0.2592,1929.2,1927.5,1.56209103]
[1772993952438,0.2592,1929.2,1927.6,1.56209103]
[1772993952638,0.48391955,1929.1,1927.8,1.56209103]
[1772993952838,0.48391955,1929.1,1927.9,1.56209103]
[1772993953337,0.48391955,1929.1,1927.5,1.56312249]
[1772993954438,0.48391955,1929.1,1927.5,1.56952981]
[1772993955341,0.25921,1929.0,1927.1,1.56730327]
[1772993955535,6.78,1928.9,1927.1,1.56730327]
[1772993955739,6.86069997,1928.9,1927.3,1.56730327]
[1772993956439,6.86069997,1928.9,1927.3,0.00406492]
[1772993956734,8.42733154,1928.8,1926.9,1.71297257]
[1772993956940,4.55663697,1928.6,1926.9,1.71297257]
[1772993957130,8.16809154,1928.5,1926.9,1.71297257]
[1772993957332,8.16809154,1928.4,1926.9,1.71297257]
[1772993957538,0.161446,1928.5,1926.9,1.71297257]
[1772993957838,1.69437322,1928.3,1926.9,1.71678177]
[1772993958037,0.00575752,1928.3,1927.3,1.75305997]
[1772993958239,0.00575752,1928.3,1927.5,1.75305997]
[1772993958839,1.45219374,1928.2,1927.5,1.75305997]
[1772993959238,0.00575752,1928.3,1927.5,1.75305997]
[1772993959741,5.70641067,1929.5,1927.7,1.39996534]
[1772993959742,0.05900154,1929.5,1927.7,1.39996534]
[1772993959945,0.05900154,1929.5,1927.9,1.41526806]
[1772993960543,0.05900154,1929.5,1928.1,1.41526806]
[1772993960743,0.06310071,1929.5,1928.1,1.41526806]
[1772993961848,0.06310071,1929.5,1928.3,1.40816293]
[1772993962047,0.06310071,1929.5,1928.5,1.40816293]
[1772993962444,0.12259647,1929.3,1928.5,1.40816293]
[1772993964853,0.25916,1929.4,1928.5,1.40816293]
[1772993965150,0.09188563,1929.3,1928.5,1.40816293]
[1772993966356,0.08151541,1929.3,1928.5,1.40816293]
[1772993968453,0.06692504,1929.1,1928.5,1.40816293]
[1772993968654,0.25918,1929.2,1928.5,1.40816293]
[1772993972157,0.00409917,1929.5,1928.5,1.40816293]
[1772993973561,0.54382609,1929.4,1928.5,1.40816293]
[1772993973764,0.28466609,1929.3,1928.5,1.40816293]
[1772993974562,0.25916,1929.4,1928.5,1.40816293]
[1772993977461,0.00409917,1929.5,1928.5,1.40816293]
[1772993978165,0.25916,1929.4,1928.7,1.30893627]
[1772993978670,0.00409917,1929.5,1928.7,1.30893627]
[1772993978861,1.2619683,1929.4,1928.8,1.30893627]
[1772993981271,0.25916,1929.4,1928.8,1.30893627]
[1772993982874,1.24432674,1929.4,1928.8,1.30893627]
[1772993988774,0.91681183,1929.3,1928.8,1.30893627]
[1772993989073,1.17450746,1929.4,1928.8,1.30893627]
[1772993992776,0.25916,1929.4,1928.8,1.30893627]
[1772993994777,1.11170707,1929.4,1928.8,1.30893627]
[1772993996075,0.00409917,1929.5,1928.8,1.30893627]
[1772993996377,1.09999913,1929.8,1928.8,1.30893627]
[1772993996578,0.25909,1929.9,1928.8,1.30893627]
[1772993996773,1.35019525,1929.9,1928.8,1.30893627]
[1772993996976,1.35019525,1929.9,1929.0,1.30893627]
[1772993997178,0.00662405,1929.9,1929.0,1.30893627]
[1772993997379,1.08968372,1930.2,1929.0,1.30893627]
[1772993998175,0.25903,1930.4,1929.1,5.95242407]
[1772993998376,1.37703977,1930.4,1929.3,1.30893627]
[1772993999680,1.37703977,1930.4,1929.5,1.30893627]
[1772993999977,1.37703977,1930.4,1929.6,1.30893627]
[1772994000381,1.10667227,1929.8,1929.0,1.30893627]
[1772994000581,0.00532739,1930.4,1929.0,1.30893627]
[1772994000582,1.09783384,1929.6,1929.0,1.30893627]
[1772994001677,1.34664564,1929.7,1929.0,1.30893627]
[1772994001876,1.34664564,1929.7,1929.0,1.30993627]
[1772994002576,1.08506339,1930.1,1929.0,1.30993627]
[1772994003482,1.08506339,1930.1,1929.2,1.30841846]
[1772994003874,1.08506339,1930.1,1929.4,1.30841846]
[1772994004288,1.01321224,1930.2,1929.4,1.30841846]
[1772994005486,1.25338235,1930.3,1929.4,1.30841846]
[1772994005681,0.99433235,1930.3,1929.4,1.30841846]
[1772994005986,0.00532739,1930.4,1929.4,1.30841846]
[1772994006383,0.99794669,1930.7,1929.4,1.30841846]
[1772994006781,0.98928614,1930.9,1929.6,1.27258308]
[1772994006989,0.25888,1931.5,1930.0,1.27258308]
[1772994006990,0.98798853,1931.4,1930.0,1.27258308]
[1772994007282,0.98798853,1931.4,1930.2,1.27258308]
[1772994007283,0.99248629,1931.4,1930.2,1.27258308]
[1772994011582,0.99248629,1931.4,1930.3,12.922]
[1772994011889,0.99248629,1931.4,1930.4,1.27258308]
[1772994012290,0.99248629,1931.4,1930.6,1.27258308]
[1772994012684,0.00449776,1931.4,1930.6,1.27258308]
[1772994012883,0.94790345,1931.4,1930.6,1.27258308]
[1772994013193,0.94790345,1931.4,1930.8,1.27258308]
[1772994015388,0.00449776,1931.4,1930.8,1.27258308]
[1772994016488,0.92135725,1932.0,1930.8,1.27258308]
[1772994016890,0.92135725,1932.0,1931.0,1.27258308]
[1772994017086,0.92135725,1932.0,1931.2,1.27258308]
[1772994017589,0.92658097,1932.0,1931.2,1.27258308]
[1772994017891,0.92658097,1932.0,1931.3,14.08158308]
[1772994018095,0.92658097,1932.0,1931.3,1.27258308]
[1772994026199,0.00522372,1932.0,1931.3,1.27258308]
[1772994026401,0.83381968,1932.0,1931.3,1.27258308]
[1772994026602,0.83381968,1932.0,1931.3,1.27358308]
[1772994026999,0.00522372,1932.0,1931.3,1.27358308]
[1772994027505,0.25878,1932.2,1931.3,1.27358308]
[1772994027698,1.07514252,1933.3,1931.3,1.27358308]
[1772994027904,1.07439214,1933.1,1931.3,1.27358308]
[1772994028109,1.07439214,1932.7,1931.5,1.27258308]
[1772994028302,1.07439214,1932.5,1931.5,1.27258308]
[1772994028604,0.00527463,1932.5,1931.5,1.27699574]
[1772994028800,0.00527463,1932.5,1931.6,12.632]
[1772994029106,1.09170601,1932.5,1931.7,1.27258308]
[1772994029506,1.08643138,1932.9,1931.7,1.27258308]
[1772994030506,1.09197777,1932.9,1931.7,1.27258308]
[1772994030806,1.08144073,1932.7,1931.7,1.27258308]
[1772994031006,1.08144073,1932.7,1931.9,1.27258308]
[1772994032613,1.0653121,1932.5,1931.7,1.27258308]
[1772994034810,1.0653121,1932.5,1931.8,1.192119]
[1772994035012,1.0653121,1932.5,1931.6,1.192119]
[1772994035707,1.01279675,1932.8,1931.6,1.192119]
[1772994036515,1.01279675,1932.8,1931.8,1.192119]
[1772994038217,1.01279675,1932.8,1931.9,12.782]
[1772994038516,1.01279675,1932.8,1932.0,1.192119]
[1772994038707,1.01279675,1932.8,1932.2,1.192119]
[1772994039612,0.00554639,1932.9,1932.2,1.192119]
[1772994039915,0.97808069,1932.9,1932.2,1.192119]
[1772994045918,0.73429442,1932.7,1932.0,1.192119]
[1772994048716,0.2587,1932.8,1932.0,1.192119]
[1772994049517,0.00554639,1932.9,1932.0,1.192119]
[1772994049720,0.96220272,1933.3,1932.0,1.192119]
[1772994049924,0.96220272,1933.3,1932.1,5.50713554]
[1772994050224,0.96220272,1933.3,1932.2,1.192119]
[1772994050625,1.22084272,1933.3,1932.2,1.192119]
[1772994050927,1.22653694,1933.3,1932.2,1.192119]
[1772994051828,0.96002182,1933.2,1932.4,1.192119]
[1772994052026,0.96002182,1933.2,1932.5,1.192119]
[1772994053028,1.21642636,1933.3,1932.5,1.192119]
[1772994053223,0.95209214,1933.2,1932.5,1.192119]
[1772994058525,0.00569422,1933.3,1932.5,1.192119]
[1772994060431,0.00569422,1933.3,1932.7,1.192119]
[1772994060629,0.89238307,1933.8,1932.7,1.192119]
[1772994061130,0.89189284,1934.4,1932.9,1.192119]
[1772994061332,0.89189284,1934.4,1933.1,1.192119]
[1772994061728,0.89696998,1934.4,1933.3,1.192119]
[1772994062928,0.89696998,1934.4,1933.5,1.03675103]
[1772994065636,0.00507714,1934.4,1933.5,1.03675103]
[1772994066438,0.83791172,1934.8,1933.5,1.03675103]
[1772994066737,0.83578414,1935.0,1933.7,0.99815162]
[1772994067234,0.83578414,1935.0,1933.9,0.99815162]
[1772994067437,0.83967619,1935.0,1934.1,0.99815162]
[1772994067836,0.83241957,1935.0,1934.1,0.99815162]
[1772994068433,0.00389205,1935.0,1934.1,0.99815162]
[1772994068634,0.83207281,1935.0,1934.1,0.99815162]
[1772994069035,0.83207281,1935.0,1934.3,0.99815162]
[1772994069240,0.00389205,1935.0,1934.3,0.99815162]
[1772994071143,0.00389205,1935.0,1934.4,0.99815162]
[1772994071144,0.81252267,1934.9,1934.4,0.99815162]
[1772994071642,0.80543583,1934.7,1933.7,13.62115162]
[1772994071844,0.80543583,1934.7,1933.7,0.99815162]
[1772994072944,0.81607621,1934.5,1933.5,0.99815162]
[1772994073443,0.81607621,1934.1,1933.2,0.99815162]
[1772994075048,0.81607621,1934.1,1933.1,1.00184573]
[1772994075343,0.78000081,1933.9,1933.1,0.00369411]
[1772994075849,0.77300782,1933.7,1933.1,0.00369411]
[1772994076147,0.77300782,1933.7,1933.1,1.00184573]
[1772994079846,0.72996204,1933.5,1933.1,1.00184573]
[1772994080047,0.73385409,1933.5,1933.1,1.00184573]
[1772994081453,0.00389205,1933.5,1933.1,1.00184573]
[1772994083052,0.71130535,1933.5,1932.7,0.99815162]
[1772994083952,0.71130535,1933.5,1932.7,1.00473695]
[1772994086852,0.96559131,1933.4,1932.7,1.00473695]
[1772994087051,0.70697131,1933.3,1932.7,1.00473695]
[1772994087758,0.70024554,1933.1,1932.7,1.00473695]
[1772994088050,0.70024554,1933.1,1932.5,0.99815162]
[1772994088246,0.25865,1933.2,1932.5,0.99815162]
[1772994088450,0.70052266,1933.1,1932.5,0.99815162]
[1772994088856,0.70052266,1933.1,1932.5,1.00333561]
[1772994089055,0.95258404,1933.2,1932.5,1.00333561]
[1772994089551,0.68725142,1933.1,1932.5,1.00333561]
[1772994089751,0.94590142,1933.2,1932.5,1.00333561]
[1772994092060,0.67716214,1933.1,1932.5,1.00333561]
[1772994093758,0.25865,1933.2,1932.5,1.00333561]
[1772994094056,0.92070095,1933.2,1932.5,1.00333561]
[1772994095160,0.65510515,1933.1,1932.5,1.00333561]
[1772994096552,0.65002335,1932.9,1932.5,0.00518399]
[1772994096758,0.65002335,1932.9,1932.4,0.96272072]
[1772994096759,0.64349105,1932.7,1932.3,0.96272072]
[1772994097661,0.64349105,1932.7,1932.3,0.9675858]
[1772994098058,0.00389205,1933.5,1932.3,0.9675858]
[1772994098059,0.89240151,1933.3,1932.3,0.9675858]
[1772994098663,0.6272714,1933.2,1932.3,0.9675858]
[1772994100264,0.6272714,1933.2,1932.4,0.96272072]
[1772994102865,0.86255789,1933.3,1932.4,0.96272072]
[1772994103369,0.60391789,1933.2,1932.4,0.96272072]
[1772994112871,0.60391789,1933.2,1932.3,12.67786508]
[1772994112872,0.25869,1932.9,1932.3,0.00486508]
[1772994113073,0.25869,1932.9,1932.3,0.9675858]
[1772994113074,0.8025853,1932.9,1932.3,0.9675858]
[1772994113571,0.53772163,1932.8,1932.3,0.9675858]
[1772994118974,0.43620552,1933.4,1932.3,0.9675858]
[1772994119368,0.26250205,1933.5,1932.4,0.96272072]
[1772994119567,0.00389205,1933.5,1932.4,0.96272072]
[1772994120176,0.43346489,1933.5,1932.6,0.96272072]
[1772994122874,0.00389205,1933.5,1932.6,0.96272072]
[1772994124580,0.42487772,1934.1,1932.7,0.82143172]
[1772994124778,0.42487772,1934.1,1932.8,0.82143172]
[1772994125682,0.428977,1934.1,1932.8,0.82143172]
[1772994125884,0.43482835,1933.9,1933.0,0.81307817]
[1772994126979,0.25854,1934.0,1933.0,0.81307817]
[1772994127178,0.68719144,1934.0,1933.0,0.81307817]
[1772994127681,0.00409928,1934.1,1933.0,0.81307817]
[1772994127881,0.43597414,1934.1,1933.0,0.81307817]
[1772994128486,0.43597414,1934.1,1933.2,0.81307817]
[1772994129186,0.42570777,1933.9,1933.2,0.81307817]
[1772994135290,0.58521322,1933.7,1933.0,0.81307817]
[1772994136294,0.57988557,1933.5,1933.0,0.81307817]
[1772994136494,0.57988557,1933.3,1932.6,0.81307817]
[1772994137181,0.25862,1933.4,1932.6,0.81307817]
[1772994137583,1.11136732,1933.4,1932.6,0.81307817]
[1772994137782,0.85274732,1933.3,1932.6,0.81307817]
[1772994138781,1.11136732,1933.4,1932.6,0.81307817]
[1772994140493,0.85274732,1933.3,1932.6,0.81307817]
[1772994141886,0.85274732,1933.3,1932.7,0.81307817]
[1772994145290,0.85274732,1933.8,1932.7,0.81307817]
[1772994146694,0.85274732,1933.6,1932.7,0.81307817]
[1772994149692,0.85274732,1933.5,1932.7,0.81307817]
[1772994150087,0.85274732,1933.5,1932.8,0.81307817]
[1772994156911,0.80238705,1933.3,1932.5,0.78312591]
[1772994163511,0.80238705,1933.3,1932.6,0.78312591]
[1772994169012,0.80238705,1933.3,1932.4,12.688]
[1772994169212,9.5332728,1934.0,1932.3,0.00486508]
[1772994169213,0.80238705,1933.1,1932.3,0.00486508]
[1772994169420,0.80238705,1932.9,1932.3,0.00486508]
[1772994170425,0.80238705,1932.9,1931.8,0.78312591]
[1772994170921,0.80238705,1932.9,1931.9,0.78312591]
[1772994171623,0.80238705,1932.9,1931.9,0.78917964]
[1772994173526,0.80238705,1932.6,1931.9,0.78917964]
[1772994173823,0.80698773,1932.6,1931.9,0.78917964]
[1772994178522,0.80698773,1932.6,1932.0,12.461]
[1772994178729,0.80698773,1932.6,1932.1,0.78312591]
[1772994179632,0.80698773,1932.6,1931.9,0.78917964]
[1772994181729,0.80238705,1932.4,1931.5,0.78312591]
[1772994182635,2.34100143,1932.5,1931.5,0.78312591]
[1772994182636,0.80238705,1932.2,1931.5,0.78312591]
[1772994182824,0.80238705,1932.2,1931.5,0.78696815]
[1772994183728,2.88464848,1932.2,1931.5,0.00384224]
[1772994183932,0.74108337,1932.1,1931.5,0.00384224]
[1772994185033,0.74108337,1932.1,1931.3,13.28126445]
[1772994185334,0.74108337,1932.1,1931.3,0.74226445]
[1772994185836,0.25877,1932.3,1931.3,0.74226445]
[1772994185837,0.71008206,1932.4,1931.4,0.71876121]
[1772994186136,0.71008206,1932.4,1931.6,0.71876121]
[1772994210062,0.69429734,1932.6,1931.7,2.0823259]
[1772994210351,0.68969666,1932.9,1931.8,0.71876121]
[1772994210755,0.68969666,1932.9,1932.0,0.71876121]
[1772994211355,0.69484374,1932.9,1932.0,0.71876121]
[1772994212158,0.00514708,1932.9,1932.2,0.71876121]
[1772994212460,0.68684439,1932.9,1932.2,0.71876121]
[1772994235684,0.68684439,1932.9,1932.3,0.61310932]
[1772994238186,0.00514708,1932.9,1932.5,0.61310932]
[1772994239386,0.5492152,1933.0,1932.5,0.61310932]
[1772994240293,0.55369568,1933.0,1932.5,0.61310932]
[1772994240690,0.00448048,1933.0,1932.5,0.61310932]
[1772994240995,0.00448048,1933.0,1932.7,0.61310932]
[1772994241184,0.53024093,1933.2,1932.7,0.61310932]
[1772994241390,0.52966734,1933.6,1932.9,0.61310932]
[1772994241588,0.52966734,1933.6,1933.1,0.61310932]
[1772994242292,0.53610519,1933.6,1933.1,0.6173005]
[1772994242496,0.00643785,1933.6,1933.2,2.69436746]
[1772994242790,0.52487262,1933.8,1933.3,0.61310932]
[1772994243792,0.52952382,1933.8,1933.3,0.61310932]
[1772994245091,0.51382097,1933.8,1933.3,0.61310932]
[1772994245993,0.51755582,1933.8,1933.3,0.61310932]
[1772994246990,0.50509873,1934.0,1933.5,0.56470146]
[1772994247194,0.50509873,1934.0,1933.3,0.56470146]
[1772994247394,0.50509873,1933.9,1933.3,0.56470146]
[1772994247594,0.50509873,1934.0,1933.5,0.56470146]
[1772994247994,0.50092391,1933.9,1933.3,0.56470146]
[1772994249097,0.50092391,1933.9,1933.2,0.56470146]
[1772994251197,0.50092391,1933.9,1933.3,0.56470146]
[1772994252001,0.48708766,1934.0,1933.3,0.56470146]
[1772994252398,0.48708766,1934.0,1933.5,0.56470146]
[1772994254404,0.48708766,1934.0,1933.4,0.56470146]
[1772994263209,0.00117234,1934.0,1933.4,0.56470146]
[1772994263905,0.48508936,1934.0,1933.4,0.56470146]
[1772994264105,0.25855,1933.9,1933.4,0.56470146]
[1772994264309,0.48391702,1933.8,1933.2,0.56470146]
[1772994265115,0.48391702,1933.6,1933.1,0.00419118]
[1772994265408,0.48391702,1933.4,1933.1,0.00419118]
[1772994265709,0.48391702,1933.4,1933.1,0.56889264]
[1772994266512,0.48391702,1933.4,1932.8,0.56470146]
[1772994267410,0.48391702,1933.4,1932.8,0.57103466]
[1772994268111,0.48391702,1933.4,1932.8,0.0063332]
[1772994270111,0.48391702,1933.4,1932.8,0.57103466]
[1772994273212,0.72022029,1933.5,1932.9,0.58177256]
[1772994277216,0.4583829,1933.4,1932.9,0.58177256]
[1772994280310,0.72123573,1933.5,1932.9,0.58177256]
[1772994280515,0.46262573,1933.9,1933.1,0.58177256]
[1772994280710,2.54388387,1933.9,1933.1,0.58177256]
[1772994280915,0.46262573,1933.8,1933.1,0.58177256]
[1772994285924,0.25972234,1934.0,1933.3,0.58177256]
[1772994286123,0.4593781,1933.9,1933.3,0.58177256]
[1772994290830,0.25972234,1934.0,1933.3,0.58177256]
[1772994291032,0.72450112,1934.0,1933.3,0.58177256]
[1772994292132,0.46607024,1933.9,1933.3,0.58177256]
[1772994292524,0.25972234,1934.0,1933.3,0.58177256]
[1772994292826,0.00117234,1934.0,1933.6,0.58177256]
[1772994293129,0.46724258,1934.0,1933.6,0.58177256]
[1772994295134,2.33973814,1934.5,1933.6,0.58177256]
[1772994295135,2.80438246,1934.5,1933.6,0.58177256]
[1772994295332,0.46464432,1934.4,1933.8,0.58177256]
[1772994296234,0.4688355,1934.4,1933.8,0.58177256]
[1772994296935,0.4688355,1934.4,1933.4,0.58177256]
[1772994300030,0.4688355,1934.4,1933.5,0.58177256]
[1772994302836,0.00419118,1934.4,1933.5,0.58177256]
[1772994304443,0.461736,1934.9,1934.1,0.57624678]
[1772994304636,0.461736,1934.9,1934.3,0.57624678]
[1772994305437,0.461736,1934.9,1934.3,0.58116047]
[1772994306638,0.461736,1934.9,1934.3,0.00491369]
[1772994307142,0.461736,1934.9,1934.3,0.55318555]
[1772994309036,0.25841,1935.0,1934.3,0.55318555]
[1772994309345,0.47091839,1935.1,1934.3,0.55318555]
[1772994314350,0.43436523,1935.0,1934.3,0.55318555]
[1772994319950,0.25841,1935.1,1934.3,0.00491369]
[1772994319951,0.42335545,1934.6,1934.3,0.00491369]
[1772994320146,0.42335545,1934.6,1934.1,0.54827186]
[1772994321051,0.42826914,1934.6,1934.1,0.5522147]
[1772994321552,0.25847,1934.5,1933.8,0.54827186]
[1772994321756,0.41941261,1934.4,1933.8,0.54827186]
[1772994322656,0.41941261,1934.4,1933.8,0.55466857]
[1772994323454,0.40687246,1934.2,1933.8,0.00639671]
[1772994324155,0.2585,1934.3,1933.8,0.55466857]
[1772994324457,0.66106436,1934.3,1933.8,0.55466857]
[1772994324850,0.40256436,1934.2,1933.8,0.55466857]
[1772994327462,0.40256436,1934.2,1933.8,0.00639671]
[1772994328263,0.40256436,1934.2,1933.8,0.55466857]
[1772994336364,0.40256436,1934.2,1933.8,0.56129267]
[1772994337166,0.25853,1934.1,1933.2,0.55489596]
[1772994337367,0.394625,1934.0,1933.2,0.55489596]
[1772994338265,0.394625,1934.0,1933.2,0.56073225]
[1772994352876,0.25855,1933.9,1933.2,0.56073225]
[1772994353173,0.39709285,1933.8,1933.2,0.56073225]
[1772994355177,0.25858,1933.7,1933.2,0.56073225]
[1772994355372,2.0780053,1934.0,1932.6,0.55489596]
[1772994355373,0.39722876,1933.4,1932.6,0.55489596]
[1772994355670,0.39722876,1933.8,1932.7,0.55489596]
[1772994356285,0.39722876,1933.8,1932.9,2.0780053]
[1772994356477,0.55389457,1934.0,1933.0,0.55489596]
[1772994357674,0.55389457,1934.0,1933.2,0.55489596]
[1772994360573,0.55389457,1934.0,1933.4,0.55489596]
[1772994360878,0.81242457,1934.1,1933.4,0.55489596]
[1772994361675,6.77791369,1934.6,1933.8,0.55489596]
[1772994361676,0.55389457,1934.5,1933.8,0.55489596]
[1772994363877,0.57287103,1934.6,1933.8,0.55489596]
[1772994367675,0.559152,1934.4,1933.8,0.55489596]
[1772994386397,0.00491369,1934.6,1933.8,0.55489596]
[1772994386398,0.559152,1934.2,1933.8,0.55489596]
[1772994387698,0.2585,1934.3,1933.8,0.55489596]
[1772994387898,0.56406569,1934.6,1934.1,0.58969983]
[1772994388101,0.56406569,1934.6,1934.1,0.5945563]
[1772994388600,0.00491369,1934.6,1934.3,0.58969983]
[1772994388799,0.559152,1934.7,1934.3,0.58969983]
[1772994389696,0.00664792,1934.7,1934.5,0.58969983]
[1772994389896,0.25844,1934.8,1934.5,0.58969983]
[1772994390801,0.26499316,1934.8,1934.5,0.58969983]
[1772994391700,0.82414516,1934.8,1934.5,0.58969983]
[1772994391898,0.00655316,1934.8,1934.5,0.58969983]
[1772994392098,0.559152,1935.0,1934.3,0.58969983]
[1772994393096,0.56212676,1935.0,1934.3,0.58969983]
[1772994395801,0.8152737,1934.9,1934.3,0.58969983]
[1772994396004,0.5568537,1934.8,1934.3,0.58969983]
[1772994396403,0.8152737,1934.9,1934.3,0.58969983]
[1772994397403,0.25842,1934.9,1934.5,0.60473592]
[1772994398204,0.8152737,1934.9,1934.5,0.60473592]
[1772994399911,0.25842,1934.9,1934.5,0.60473592]
[1772994403010,0.5568537,1935.3,1934.5,0.60473592]
[1772994403302,0.5568537,1935.3,1934.6,0.60473592]
[1772994405413,0.5568537,1935.1,1934.6,0.60473592]
[1772994406012,0.25838,1935.2,1934.6,0.60473592]
[1772994406515,0.25838,1935.2,1934.8,0.60473592]
[1772994406906,0.25832,1935.7,1935.0,0.60473592]
[1772994407110,19.79780407,1936.7,1935.0,0.60473592]
[1772994407111,0.5568537,1935.4,1935.0,0.60473592]
[1772994407511,0.5568537,1935.4,1934.8,0.60473592]
[1772994408213,0.5568537,1935.2,1934.8,0.60473592]
[1772994409812,0.5568537,1935.0,1934.4,0.60473592]
[1772994411618,0.25839,1935.1,1934.6,0.60473592]
[1772994412319,0.5568537,1935.3,1934.8,0.60473592]
[1772994414422,0.5568537,1935.3,1934.5,0.60473592]
[1772994416826,0.5568537,1935.2,1934.5,0.60473592]
[1772994419026,0.5568537,1935.2,1934.6,0.60473592]
[1772994420330,0.5568537,1935.2,1934.5,0.60473592]
[1772994423021,2.46258,1935.3,1934.5,0.60473592]
[1772994423226,3.05466405,1935.3,1934.5,0.60473592]
[1772994423927,2.2042,1935.3,1934.5,0.60473592]
[1772994424128,2.79628405,1935.3,1934.5,0.60473592]
[1772994424326,0.59208405,1935.2,1934.5,0.60473592]
[1772994424729,2.2042,1935.3,1934.5,0.60473592]
[1772994425026,2.79628405,1935.3,1934.5,0.60473592]
[1772994426928,2.78570652,1935.3,1934.5,0.60473592]
[1772994427432,0.58150652,1935.2,1934.5,0.60473592]
[1772994429431,0.58150652,1935.2,1934.6,0.58214321]
[1772994435537,0.58150652,1935.2,1934.5,12.28]
[1772994435737,0.58150652,1935.0,1934.5,12.28]
[1772994436133,0.58150652,1935.0,1934.5,12.86214321]
[1772994439337,0.58150652,1935.0,1934.2,0.58214321]
[1772994448549,0.58150652,1934.6,1934.1,0.58699968]
[1772994452956,0.58150652,1934.6,1934.1,0.00485647]
[1772994453654,0.58150652,1934.6,1934.1,0.59777781]
[1772994462263,0.58150652,1934.6,1934.1,0.00485647]
[1772994462866,0.58150652,1934.6,1934.1,0.59777781]
[1772994463765,0.58150652,1934.6,1934.1,0.00485647]
[1772994463960,0.58150652,1934.6,1933.8,0.59292134]
[1772994464868,0.58636299,1934.6,1933.8,0.59657585]
[1772994466068,0.58536983,1934.4,1933.8,0.59657585]
[1772994478375,0.84383983,1934.5,1933.8,0.59657585]
[1772994479569,0.84383983,1934.5,1933.9,0.59292134]
[1772994481470,0.5902263,1934.6,1934.1,0.59292134]
[1772994481879,0.00485647,1934.6,1934.1,0.59292134]
[1772994482074,0.5902263,1934.6,1934.1,0.59292134]
[1772994487182,2.6840263,1934.6,1934.1,0.59292134]
[1772994489880,2.0938,1934.6,1934.1,0.59292134]
[1772994490088,1.57680292,1934.6,1934.3,0.55404567]
[1772994492384,0.55611963,1934.9,1934.3,0.55404567]
[1772994493783,0.01920916,1934.9,1934.3,0.55404567]
[1772994495987,0.55611963,1934.7,1933.9,0.55404567]
[1772994496187,0.55611963,1934.7,1934.1,0.55404567]